fUSD/lending_fUSD_20250526
["ID","MTS","AMOUNT","RATE_DAILY","PERIOD"]
[362440619,1748293843865,-420.0,0.00032876,2]
[362440620,1748293843875,-422.8685605,0.00032876,2]
[362440621,1748293843884,-420.0,0.00032876,2]
[362440622,1748293843894,-420.0,0.00032876,2]
[362440623,1748293843903,-420.0,0.00032876,2]
[362440624,1748293843912,-420.0,0.00032876,2]
[362440625,1748293843923,-420.0,0.00032876,2]
[362440626,1748293843936,-420.0,0.00032876,2]
[362440627,1748293843947,-2416.66,0.00032876,2]
[362440628,1748293843958,-420.0,0.00032876,2]
[362440629,1748293843968,-2275.29,0.00032876,2]
[362440630,1748293843979,-420.0,0.00032876,2]
[362440631,1748293843988,-420.0,0.00032876,2]
[362440632,1748293843997,-420.0,0.00032876,2]
[362440633,1748293844006,-420.0,0.00032876,2]
[362440634,1748293844016,-420.0,0.00032876,2]
[362440635,1748293844025,-290.58611851,0.00032876,2]
[362440636,1748293844034,-420.0,0.00032876,2]
[362440637,1748293844044,-420.0,0.00032876,2]
[362440638,1748293844054,-420.0,0.00032876,2]
[362440639,1748293844063,-420.0,0.00032876,2]
[362440640,1748293844072,-420.0,0.00032876,2]
[362440641,1748293844081,-420.0,0.00032876,2]
[362440642,1748293844093,-151.0,0.00032876,7]
[362440643,1748293844103,-420.0,0.00032876,2]
[362440644,1748293844115,-151.0,0.00032876,7]
[362440645,1748293844126,-420.0,0.00032876,2]
[362440646,1748293844136,-151.0,0.00032876,7]
[362440647,1748293844147,-151.0,0.00032876,7]
[362440648,1748293844159,-491.04,0.00032876,2]
[362440649,1748293844171,-420.0,0.00032876,2]
[362440650,1748293844182,-2564.25,0.00032876,2]
[362440651,1748293844192,-151.0,0.00032876,7]
[362440652,1748293844202,-180.532882,0.00032876,7]
[362440653,1748293844214,-420.0,0.00032876,2]
[362440654,1748293844223,-420.0,0.00032876,2]
[362440655,1748293844234,-420.0,0.00032876,2]
[362440656,1748293844244,-420.0,0.00032876,2]
[362440657,1748293844254,-420.0,0.00032876,2]
[362440658,1748293844265,-420.0,0.00032876,2]
[362440659,1748293844275,-420.0,0.00032876,2]
[362440660,1748293844284,-420.0,0.00032876,2]
[362440661,1748293844295,-420.0,0.00032876,2]
[362440662,1748293844305,-511.75471796,0.00032876,2]
[362440663,1748293844315,-420.0,0.00032876,2]
[362440664,1748293844326,-420.0,0.00032876,2]
[362440665,1748293844336,-424.7845852,0.00032876,2]
[362440666,1748293844346,-420.0,0.00032876,2]
[362440667,1748293844355,-420.0,0.00032876,2]
[362440668,1748293844365,-420.0,0.00032876,2]
[362440669,1748293844374,-167.74423662,0.00032876,2]
[362440670,1748293844384,-426.66922024,0.00032876,2]
[362440671,1748293844394,-420.0,0.00032876,2]
[362440672,1748293844405,-420.0,0.00032876,2]
[362440673,1748293844414,-420.0,0.00032876,2]
[362440674,1748293844424,-420.0,0.00032876,2]
[362440675,1748293844433,-420.0,0.00032876,2]
[362440676,1748293844443,-420.0,0.00032876,2]
[362440677,1748293844453,-420.0,0.00032876,2]
[362440678,1748293844462,-420.0,0.00032876,2]
[362440679,1748293844473,-420.0,0.00032876,2]
[362440680,1748293844483,-423.05615952,0.00032876,2]
[362440681,1748293844493,-420.0,0.00032876,2]
[362440682,1748293844505,-420.0,0.00032876,2]
[362440683,1748293844515,-400.0,0.00032876,2]
[362440684,1748293844524,-420.0,0.00032876,2]
[362440685,1748293844534,-420.0,0.00032876,2]
[362440686,1748293844545,-211.54466775,0.00032876,2]
[362440687,1748293844555,-420.0,0.00032876,2]
[362440688,1748293844564,-420.0,0.00032876,2]
[362440689,1748293844574,-420.0,0.00032876,2]
[362440690,1748293844584,-420.0,0.00032876,2]
[362440691,1748293844594,-420.0,0.00032876,2]
[362440692,1748293844603,-420.0,0.00032876,2]
[362440693,1748293844613,-3150.0,0.00032876,2]
[362440694,1748293844623,-420.0,0.00032876,2]
[362440695,1748293844632,-420.0,0.00032876,2]
[362440696,1748293844642,-420.0,0.00032876,2]
[362440697,1748293844651,-420.0,0.00032876,2]
[362440698,1748293844661,-420.0,0.00032876,2]
[362440699,1748293844671,-350.42106449,0.00032876,2]
[362440700,1748293844681,-420.0,0.00032876,2]
[362440701,1748293844691,-420.0,0.00032876,2]
[362440702,1748293844701,-151.0,0.00032876,7]
[362440703,1748293844712,-420.0,0.00032876,2]
[362440704,1748293844722,-151.0,0.00032876,7]
[362440705,1748293844735,-420.0,0.00032876,2]
[362440706,1748293844746,-2884.92,0.00032876,2]
[362440707,1748293844757,-480.67093414,0.00032876,2]
[362440708,1748293844767,-357.59354984,0.00032876,2]
[362440709,1748293844777,-420.0,0.00032876,2]
[362440710,1748293844787,-420.0,0.00032876,2]
[362440711,1748293844796,-151.0,0.00032876,7]
[362440712,1748293844805,-420.0,0.00032876,2]
[362440713,1748293844815,-2219.33,0.00032876,2]
[362440714,1748293844825,-151.627626,0.00032876,7]
[362440715,1748293844834,-420.0,0.00032876,2]
[362440716,1748293844845,-420.0,0.00032876,2]
[362440717,1748293844854,-420.0,0.00032876,2]
[362440718,1748293844863,-151.0,0.00032876,7]
[362440719,1748293844873,-2151.98,0.00032876,2]
[362440720,1748293844883,-420.0,0.00032876,2]
[362440721,1748293844892,-1115.22,0.00032876,2]
[362440722,1748293844902,-420.0,0.00032876,2]
[362440723,1748293844911,-420.0,0.00032876,2]
[362440724,1748293844921,-632.23,0.00032876,2]
[362440725,1748293844930,-151.0,0.00032876,7]
[362440726,1748293844940,-420.0,0.00032876,2]
[362440727,1748293844950,-151.0,0.00032876,7]
[362440728,1748293844959,-420.0,0.00032876,2]
[362440729,1748293844969,-420.0,0.00032876,2]
[362440730,1748293844978,-420.0,0.00032876,2]
[362440731,1748293844988,-420.0,0.00032876,2]
[362440732,1748293844997,-420.0,0.00032876,2]
[362440733,1748293845007,-3166.82,0.00032876,2]
[362440734,1748293845017,-420.0,0.00032876,2]
[362440735,1748293845026,-420.0,0.00032876,2]
[362440736,1748293845036,-420.0,0.00032876,2]
[362440737,1748293845046,-420.0,0.00032876,2]
[362440738,1748293845055,-420.0,0.00032876,2]
[362440739,1748293845216,-420.0,0.00032876,2]
[362440740,1748293845248,-407.17991271,0.00032876,2]
[362440742,1748293845258,-420.0,0.00032876,2]
[362440743,1748293845268,-4840.78,0.00032876,2]
[362440744,1748293845277,-420.0,0.00032876,2]
[362440745,1748293845286,-420.0,0.00032876,2]
[362440746,1748293845296,-420.0,0.00032876,2]
[362440748,1748293845305,-420.0,0.00032876,2]
[362440749,1748293845315,-420.0,0.00032876,2]
[362440750,1748293845324,-422.50768079,0.00032876,2]
[362440751,1748293845334,-423.80159391,0.00032876,2]
[362440752,1748293845346,-420.0,0.00032876,2]
[362440753,1748293845355,-3558.28,0.00032876,2]
[362440754,1748293845365,-417.74563232,0.00032876,2]
[362440755,1748293845374,-420.0,0.00032876,2]
[362440756,1748293845384,-420.0,0.00032876,2]
[362440757,1748293845393,-623.5,0.00032876,2]
[362440758,1748293845403,-3460.41,0.00032876,2]
[362440759,1748293845412,-420.0,0.00032876,2]
[362440760,1748293845422,-420.0,0.00032876,2]
[362440761,1748293845432,-151.0,0.00032876,7]
[362440762,1748293845442,-420.0,0.00032876,2]
[362440763,1748293845451,-420.0,0.00032876,2]
[362440764,1748293845460,-420.0,0.00032876,2]
[362440765,1748293845470,-420.0,0.00032876,2]
[362440766,1748293845479,-420.0,0.00032876,2]
[362440767,1748293845489,-420.2498051,0.00032876,2]
[362440768,1748293845498,-511.58272589,0.00032876,2]
[362440769,1748293845508,-420.0,0.00032876,2]
[362440770,1748293845517,-423.4392832,0.00032876,2]
[362440771,1748293845527,-300.0,0.00032876,2]
[362440772,1748293845537,-520.66,0.00032876,2]
[362440773,1748293845547,-420.0,0.00032876,2]
[362440774,1748293845558,-420.0,0.00032876,2]
[362440775,1748293845568,-804.68,0.00032876,2]
[362440776,1748293845577,-420.0,0.00032876,2]
[362440777,1748293845587,-420.0,0.00032876,2]
[362440778,1748293845598,-420.0,0.00032876,2]
[362440779,1748293845609,-420.0,0.00032876,2]
[362440780,1748293845619,-420.0,0.00032876,2]
[362440781,1748293845630,-420.0,0.00032876,2]
[362440782,1748293845640,-424.23567343,0.00032876,2]
[362440783,1748293845650,-401.8395468,0.00032876,2]
[362440784,1748293845660,-420.0,0.00032876,2]
[362440785,1748293845670,-420.0,0.00032876,2]
[362440786,1748293845679,-420.0,0.00032876,2]
[362440787,1748293845688,-337.30660097,0.00032876,2]
[362440788,1748293845698,-420.0,0.00032876,2]
[362440789,1748293845707,-420.0,0.00032876,2]
[362440790,1748293845718,-420.0,0.00032876,2]
[362440791,1748293845730,-420.0,0.00032876,2]
[362440792,1748293845740,-476.59148068,0.00032876,2]
[362440793,1748293845750,-420.0,0.00032876,2]
[362440794,1748293845759,-420.0,0.00032876,2]
[362440795,1748293845771,-420.0,0.00032876,2]
[362440796,1748293845780,-420.0,0.00032876,2]
[362440797,1748293845790,-420.0,0.00032876,2]
[362440798,1748293845799,-1019.92,0.00032876,2]
[362440799,1748293845810,-420.0,0.00032876,2]
[362440800,1748293845820,-420.0,0.00032876,2]
[362440801,1748293845831,-420.0,0.00032876,2]
[362440802,1748293845843,-420.0,0.00032876,2]
[362440803,1748293845853,-420.0,0.00032876,2]
[362440804,1748293845865,-420.0,0.00032876,2]
[362440805,1748293845875,-250.0,0.00032876,2]
[362440806,1748293845885,-515.6,0.00032876,2]
[362440807,1748293845895,-420.0,0.00032876,2]
[362440808,1748293845904,-420.0,0.00032876,2]
[362440809,1748293845914,-420.0,0.00032876,2]
[362440810,1748293845924,-420.0,0.00032876,2]
[362440811,1748293845935,-420.0,0.00032876,2]
[362440812,1748293845945,-420.0,0.00032876,2]
[362440813,1748293845955,-420.0,0.00032876,2]
[362440814,1748293845964,-420.0,0.00032876,2]
[362440815,1748293845974,-420.0,0.00032876,2]
[362440816,1748293845984,-420.0,0.00032876,2]
[362440817,1748293845995,-420.0,0.00032876,2]
[362440818,1748293846005,-221.59379632,0.00032876,2]
[362440819,1748293846016,-420.0,0.00032876,2]
[362440820,1748293846027,-420.0,0.00032876,2]
[362440821,1748293846039,-281.46203572,0.00032876,2]
[362440822,1748293846050,-509.83343738,0.00032876,2]
[362440823,1748293846060,-420.0,0.00032876,2]
[362440824,1748293846071,-420.0,0.00032876,2]
[362440825,1748293846082,-1281.56,0.00032876,2]
[362440826,1748293846092,-420.0,0.00032876,2]
[362440827,1748293846102,-420.0,0.00032876,2]
[362440828,1748293846113,-420.0,0.00032876,2]
[362440829,1748293846124,-3509.52,0.00032876,2]
[362440830,1748293846135,-420.0,0.00032876,2]
[362440831,1748293846145,-530.02,0.00032876,2]
[362440832,1748293846159,-151.0,0.00032876,7]
[362440833,1748293846170,-420.0,0.00032876,2]
[362440834,1748293846181,-2729.6,0.00032876,2]
[362440835,1748293846191,-420.0,0.00032876,2]
[362440836,1748293846200,-420.0,0.00032876,2]
[362440837,1748293846209,-420.0,0.00032876,2]
[362440838,1748293846219,-420.0,0.00032876,2]
[362440839,1748293846231,-420.0,0.00032876,2]
[362440840,1748293846243,-3747.66,0.00032876,2]
[362440841,1748293846253,-420.0,0.00032876,2]
[362440842,1748293846264,-2373.07,0.00032876,2]
[362440843,1748293846274,-151.0,0.00032876,7]
[362440844,1748293846285,-151.0,0.00032876,7]
[362440845,1748293846295,-420.0,0.00032876,2]
[362440846,1748293846305,-420.0,0.00032876,2]
[362440847,1748293846316,-420.0,0.00032876,2]
[362440848,1748293846325,-420.0,0.00032876,2]
[362440849,1748293846335,-420.0,0.00032876,2]
[362440850,1748293846344,-151.0,0.00032876,7]
[362440851,1748293846353,-151.0,0.00032876,7]
[362440852,1748293846363,-420.0,0.00032876,2]
[362440853,1748293846372,-420.0,0.00032876,2]
[362440854,1748293846382,-151.0,0.00032876,7]
[362440855,1748293846392,-215.901272,0.00032876,7]
[362440856,1748293846402,-420.0,0.00032876,2]
[362440857,1748293846412,-420.0,0.00032876,2]
[362440858,1748293846421,-420.0,0.00032876,2]
[362440859,1748293846431,-420.0,0.00032876,2]
[362440860,1748293846440,-420.0,0.00032876,2]
[362440861,1748293846450,-420.0,0.00032876,2]
[362440862,1748293846460,-548.31705962,0.00032876,2]
[362440863,1748293846470,-151.0,0.00032876,7]
[362440864,1748293846484,-2356.59,0.00032876,2]
[362440865,1748293846493,-420.0,0.00032876,2]
[362440866,1748293846503,-151.0,0.00032876,7]
[362440867,1748293846513,-420.0,0.00032876,2]
[362440868,1748293846522,-420.0,0.00032876,2]
[362440869,1748293846532,-420.0,0.00032876,2]
[362440870,1748293846542,-420.0,0.00032876,2]
[362440871,1748293846552,-420.0,0.00032876,2]
[362440872,1748293846562,-420.0,0.00032876,2]
[362440873,1748293846571,-3305.98,0.00032876,2]
[362440874,1748293846581,-423.74466603,0.00032876,2]
[362440875,1748293846592,-420.0,0.00032876,2]
[362440876,1748293846602,-420.0,0.00032876,2]
[362440877,1748293846612,-420.0,0.00032876,2]
[362440878,1748293846622,-420.0,0.00032876,2]
[362440879,1748293846633,-500.0,0.00032876,2]
[362440880,1748293846643,-420.0,0.00032876,2]
[362440881,1748293846653,-420.0,0.00032876,2]
[362440882,1748293846664,-420.0,0.00032876,2]
[362440883,1748293846674,-2338.65,0.00032876,2]
[362440884,1748293846685,-347.44507379,0.00032876,2]
[362440885,1748293846695,-420.23009865,0.00032876,2]
[362440886,1748293846705,-420.0,0.00032876,2]
[362440887,1748293846718,-2453.05,0.00032876,2]
[362440888,1748293846728,-4382.07,0.00032876,2]
[362440889,1748293846740,-420.0,0.00032876,2]
[362440890,1748293846750,-429.99051086,0.00032876,2]
[362440891,1748293846759,-420.0,0.00032876,2]
[362440892,1748293846769,-151.0,0.00032876,7]
[362440893,1748293846778,-420.0,0.00032876,2]
[362440894,1748293846788,-420.0,0.00032876,2]
[362440895,1748293846797,-420.0,0.00032876,2]
[362440896,1748293846807,-420.0,0.00032876,2]
[362440897,1748293846817,-420.0,0.00032876,2]
[362440898,1748293846827,-424.38125476,0.00032876,2]
[362440899,1748293846837,-420.0,0.00032876,2]
[362440900,1748293846847,-420.0,0.00032876,2]
[362440901,1748293846856,-436.0,0.00032876,2]
[362440902,1748293846865,-420.0,0.00032876,2]
[362440903,1748293846875,-420.0,0.00032876,2]
[362440904,1748293846886,-420.0,0.00032876,2]
[362440905,1748293846895,-420.0,0.00032876,2]
[362440906,1748293846905,-427.37727922,0.00032876,2]
[362440907,1748293846915,-420.0,0.00032876,2]
[362440908,1748293846925,-420.0,0.00032876,2]
[362440909,1748293846934,-420.0,0.00032876,2]
[362440910,1748293846943,-420.0,0.00032876,2]
[362440911,1748293846953,-426.81929293,0.00032876,2]
[362440912,1748293846963,-420.0,0.00032876,2]
[362440913,1748293846972,-420.0,0.00032876,2]
[362440914,1748293846982,-546.96,0.00032876,2]
[362440915,1748293846992,-420.0,0.00032876,2]
[362440916,1748293847001,-420.0,0.00032876,2]
[362440917,1748293847010,-420.0,0.00032876,2]
[362440918,1748293847019,-367.8197866,0.00032876,2]
[362440919,1748293847029,-200.49870243,0.00032876,2]
[362440920,1748293847038,-1543.7,0.00032876,2]
[362440921,1748293847048,-420.0,0.00032876,2]
[362440922,1748293847058,-420.0,0.00032876,2]
[362440923,1748293847067,-420.0,0.00032876,2]
[362440924,1748293847079,-420.0,0.00032876,2]
[362440925,1748293847090,-420.0,0.00032876,2]
[362440926,1748293847100,-420.0,0.00032876,2]
[362440927,1748293847109,-420.0,0.00032876,2]
[362440928,1748293847118,-420.0,0.00032876,2]
[362440929,1748293847128,-427.42599954,0.00032876,2]
[362440930,1748293847137,-420.0,0.00032876,2]
[362440931,1748293847146,-422.75944353,0.00032876,2]
[362440932,1748293847155,-420.0,0.00032876,2]
[362440933,1748293847164,-420.0,0.00032876,2]
[362440934,1748293847174,-420.0,0.00032876,2]
[362440935,1748293847183,-420.0,0.00032876,2]
[362440936,1748293847193,-420.0,0.00032876,2]
[362440937,1748293847203,-444.85029863,0.00032876,2]
[362440938,1748293847212,-420.0,0.00032876,2]
[362440939,1748293847223,-420.0,0.00032876,2]
[362440940,1748293847232,-420.0,0.00032876,2]
[362440941,1748293847241,-420.0,0.00032876,2]
[362440942,1748293847250,-420.0,0.00032876,2]
[362440943,1748293847261,-420.0,0.00032876,2]
[362440944,1748293847270,-420.0,0.00032876,2]
[362440945,1748293847280,-420.0,0.00032876,2]
[362440946,1748293847290,-420.0,0.00032876,2]
[362440947,1748293847299,-420.0,0.00032876,2]
[362440948,1748293847309,-318.54379913,0.00032876,2]
[362440949,1748293847318,-423.87399003,0.00032876,2]
[362440950,1748293847328,-420.0,0.00032876,2]
[362440951,1748293847337,-420.0,0.00032876,2]
[362440952,1748293847347,-3074.7,0.00032876,2]
[362440953,1748293847358,-172.1295848,0.00032876,2]
[362440954,1748293847367,-420.0,0.00032876,2]
[362440955,1748293847377,-420.0,0.00032876,2]
[362440956,1748293847388,-420.0,0.00032876,2]
[362440957,1748293847398,-420.0,0.00032876,2]
[362440958,1748293847409,-420.0,0.00032876,2]
[362440959,1748293847418,-420.0,0.00032876,2]
[362440960,1748293847427,-427.47906415,0.00032876,2]
[362440961,1748293847437,-420.0,0.00032876,2]
[362440962,1748293847447,-420.0,0.00032876,2]
[362440963,1748293847457,-420.0,0.00032876,2]
[362440964,1748293847466,-420.0,0.00032876,2]
[362440965,1748293847476,-420.0,0.00032876,2]
[362440966,1748293847485,-420.0,0.00032876,2]
[362440967,1748293847495,-420.0,0.00032876,2]
[362440968,1748293847504,-420.0,0.00032876,2]
[362440969,1748293847514,-420.0,0.00032876,2]
[362440970,1748293847524,-425.62035518,0.00032876,2]
[362440971,1748293847533,-420.0,0.00032876,2]
[362440972,1748293847543,-420.0,0.00032876,2]
[362440973,1748293847552,-3218.37,0.00032876,2]
[362440974,1748293847562,-420.0,0.00032876,2]
[362440975,1748293847570,-420.0,0.00032876,2]
[362440976,1748293847579,-2535.1,0.00032876,2]
[362440977,1748293847589,-424.51426428,0.00032876,2]
[362440978,1748293847598,-423.58090187,0.00032876,2]
[362440979,1748293847609,-420.0,0.00032876,2]
[362440980,1748293847618,-428.00754548,0.00032876,2]
[362440981,1748293847627,-1198.41,0.00032876,2]
[362440982,1748293847636,-420.0,0.00032876,2]
[362440983,1748293847646,-436.03,0.00032876,2]
[362440984,1748293847655,-151.0,0.00032876,7]
[362440985,1748293847664,-420.0,0.00032876,2]
[362440986,1748293847673,-151.0,0.00032876,7]
[362440987,1748293847683,-151.0,0.00032876,7]
[362440988,1748293847692,-151.0,0.00032876,7]
[362440989,1748293847702,-151.0,0.00032876,7]
[362440990,1748293847711,-420.0,0.00032876,2]
[362440991,1748293847720,-151.0,0.00032876,7]
[362440992,1748293847734,-151.0,0.00032876,7]
[362440993,1748293847744,-420.0,0.00032876,2]
[362440994,1748293847753,-420.0,0.00032876,2]
[362440995,1748293847764,-420.0,0.00032876,2]
[362440996,1748293847775,-420.0,0.00032876,2]
[362440997,1748293847784,-420.0,0.00032876,2]
[362440998,1748293847794,-420.0,0.00032876,2]
[362440999,1748293847803,-151.0,0.00032876,7]
[362441000,1748293847813,-420.0,0.00032876,2]
[362441001,1748293847990,-420.0,0.00032876,2]
[362441002,1748293848000,-420.0,0.00032876,2]
[362441003,1748293848010,-420.0,0.00032876,2]
[362441004,1748293848019,-413.85964741,0.00032876,2]
[362441005,1748293848029,-420.0,0.00032876,2]
[362441006,1748293848038,-3150.64,0.00032876,2]
[362441007,1748293848048,-152.951142,0.00032876,7]
[362441008,1748293848057,-420.0,0.00032876,2]
[362441009,1748293848066,-420.0,0.00032876,2]
[362441010,1748293848075,-420.0,0.00032876,2]
[362441011,1748293848084,-420.0,0.00032876,2]
[362441012,1748293848094,-5000.0,0.00032876,2]
[362441013,1748293848103,-420.0,0.00032876,2]
[362441014,1748293848113,-4573.39076168,0.00032876,3]
[362441015,1748293852371,-151.0,0.00032863,7]
[362441016,1748293852383,-426.60923832,0.00032876,3]
[362441017,1748293852393,-769.66154661,0.00032876,4]
[362441018,1748293852416,-2735.15,0.00032876,4]
[362441059,1748294879583,152.64,0.00013699,2]
[362441088,1748295031846,-500.0,0.00019999,2]
[362441089,1748295031862,-357.94041574,0.00019999,2]
[362441090,1748295031874,-4305.58949243,0.0002,2]
[362441091,1748295032065,-4289.5488,0.0002,2]
[362441587,1748295037809,-450.74444166,0.0002,2]
[362441802,1748295039997,-361.23649924,0.0002,2]
[362441839,1748295040354,-626013.0915445,0.0002,2]
[362441841,1748295040365,-277.30427851,0.000215,2]
[362441843,1748295040374,-500.78382127,0.000216,2]
[362441845,1748295040384,-500.0,0.000216,2]
[362441847,1748295040394,-1000.0,0.00022148,2]
[362441849,1748295040403,-4000.50363147,0.00022225,2]
[362441851,1748295040413,-450.59640164,0.00022325,2]
[362441853,1748295040423,-450.59640164,0.00022325,2]
[362441855,1748295040433,-450.59640164,0.00022325,2]
[362441857,1748295040443,-450.59640164,0.00022325,2]
[362441859,1748295040452,-450.59640164,0.00022492,7]
[362441861,1748295040462,-450.59640164,0.00022492,7]
[362441863,1748295040472,-450.59640164,0.00022492,7]
[362441865,1748295040482,-450.59640164,0.00022492,7]
[362441867,1748295040491,-272.45469768,0.00022492,7]
[362441869,1748295040500,-1500.0,0.00022696,2]
[362441871,1748295040511,-209.77047853,0.000229,8]
[362441873,1748295040520,-277.30427842,0.00022966,2]
[362441875,1748295040530,-500.0,0.00023244,2]
[362441877,1748295040539,-4000.50363145,0.00023428,2]
[362441879,1748295040549,-5000.00478417,0.00024,5]
[362441881,1748295040558,-209.7704785,0.000244,11]
[362441883,1748295040568,-277.30427842,0.00024432,2]
[362441885,1748295040578,-4000.50363145,0.00024631,2]
[362441887,1748295040588,-170138.446135,0.000248,2]
[362441889,1748295040597,-42499.5918921,0.000249,2]
[362441913,1748295040807,-24305.492305,0.0002499,2]
[362441916,1748295040834,-4000.50363145,0.00025833,2]
[362441918,1748295040845,-151.61,0.00025855,2]
[362441920,1748295040854,-209.7704785,0.000259,14]
[362441922,1748295040864,-151.0,0.000261,2]
[362441924,1748295040874,-21249.7959461,0.0002649,2]
[362441926,1748295040885,-4000.50363145,0.00027036,2]
[362441928,1748295040895,-153.0,0.00027123,2]
[362441930,1748295040905,-153.0,0.00027123,2]
[362441932,1748295040914,-209.7704785,0.000274,17]
[362441934,1748295040924,-15663.0,0.000275,2]
[362441936,1748295040933,-500.0,0.00027545,2]
[362441938,1748295040943,-252.0,0.00027777,2]
[362441940,1748295040952,-4000.50363145,0.00028239,2]
[362441942,1748295040962,-5562.0,0.000283,3]
[362441944,1748295040971,-209.7704785,0.000289,20]
[362441945,1748295040981,-154.01,0.00029,2]
[362441947,1748295040991,-5562.0,0.00029,5]
[362441949,1748295041000,-206.0,0.00029239,2]
[362441951,1748295041009,-202.0,0.00029239,2]
[362441953,1748295041019,-4000.50363145,0.00029442,2]
[362441955,1748295041029,-168.88,0.00029494,2]
[362441957,1748295041038,-500.0,0.0002988,2]
[362441959,1748295041048,-339.71,0.00029949,2]
[362441961,1748295041057,-279.0,0.0003,14]
[362441963,1748295041066,-426.95580277,0.0003,2]
[362441966,1748295041077,-154.0,0.00030355,2]
[362441967,1748295041086,-6916.0,0.00030355,2]
[362441969,1748295041095,-4054.0,0.00030355,2]
[362441971,1748295041105,-937.0,0.00030355,2]
[362441973,1748295041114,-578.168,0.00030355,2]
[362441975,1748295041123,-922.708,0.00030355,2]
[362441977,1748295041133,-209.7704785,0.000304,22]
[362441979,1748295041142,-279.0,0.00030411,14]
[362441981,1748295041151,-4000.50363145,0.00030644,2]
[362441983,1748295041161,-450.59640164,0.00030672,3]
[362441985,1748295041170,-150.99999997,0.00031,2]
[362441987,1748295041179,-207.4,0.00031159,2]
[362441989,1748295041193,-155.23,0.00031187,120]
[362441991,1748295041202,-4000.0,0.00031191,4]
[362441993,1748295041212,-250.0,0.0003127,2]
[362441996,1748295041221,-151.77,0.00031346,2]
[362441998,1748295041232,-24305.492305,0.0003139,2]
[362442000,1748295041241,-21249.7959461,0.0003139,2]
[362442002,1748295041250,-34331.95579573,0.000314,5]
[362442004,1748295041260,-221.91,0.00031503,2]
[362442005,1748295041270,-1000.0,0.00031507,2]
[362442007,1748295041279,-640.0,0.00031507,120]
[362442009,1748295041289,-279.0,0.00031644,14]
[362442011,1748295041298,-1194.41,0.00031644,2]
[362442014,1748295041308,-2990.71,0.00031729,2]
[362442015,1748295041317,-4000.50363145,0.00031847,2]
[362442017,1748295041326,-526.844163,0.00031889,12]
[362442019,1748295041336,-209.7704785,0.000319,25]
[362442021,1748295041346,-150.0,0.00032055,2]
[362442023,1748295041355,-150.0,0.00032055,2]
[362442025,1748295041365,-300.83,0.00032055,2]
[362442027,1748295041375,-150.0,0.00032055,2]
[362442029,1748295041384,-150.0,0.00032055,2]
[362442031,1748295041393,-150.0,0.00032055,2]
[362442033,1748295041402,-374.48,0.00032055,2]
[362442034,1748295041411,-150.49,0.00032055,2]
[362442035,1748295041420,-150.49,0.00032055,2]
[362442036,1748295041430,-150.49,0.00032055,2]
[362442037,1748295041439,-150.0,0.00032078,2]
[362442038,1748295041448,-300.98,0.00032078,2]
[362442039,1748295041457,-150.0,0.000321,2]
[362442040,1748295041467,-328.00641331,0.0003217,14]
[362442041,1748295041476,-339.71,0.00032213,2]